bitfinex-derivatives/quotes_ETHF0:USTF0_20250420
["timestamp","ask_amount","ask_price","bid_price","bid_amount"]
[1745139036339,4.95578493,1590.3,1590.2,26.73462926]
[1745139036542,4.46552,1590.3,1590.2,26.73462926]
[1745139036744,4.46552,1590.3,1590.1,31.00928901]
[1745139036745,1.2578,1590.2,1590.1,22.63965495]
[1745139036936,1.2578,1590.2,1590.1,27.19845495]
[1745139037244,1.2578,1590.2,1590.1,60.81291808]
[1745139039748,3.14322,1590.9,1590.2,6.2864]
[1745139039938,6.35112,1590.8,1590.3,4.347]
[1745139040138,6.35112,1590.8,1590.4,3.2078]
[1745139040445,1.25756,1590.5,1590.4,3.2078]
[1745139040647,1.25756,1590.5,1590.4,9.4942]
[1745139041145,1.25756,1590.5,1590.4,11.7222]
[1745139042245,1.25754,1590.6,1590.4,30.67458498]
[1745139042440,1.25754,1590.6,1590.5,6.2864]
[1745139042642,1.25754,1590.6,1590.5,25.23878498]
[1745139043346,1.25754,1590.6,1590.5,27.46678498]
[1745139047943,8.3767,1590.9,1590.5,33.26878498]
[1745139047944,1.25731,1590.9,1590.5,33.26878498]
[1745139048150,1.2572,1591.0,1590.7,4.46515]
[1745139048342,1.2572,1591.0,1590.9,3.2078]
[1745139048536,7.19816822,1591.2,1590.9,9.4942]
[1745139048740,1.25713,1591.1,1591.0,6.2864]
[1745139048941,1.25713,1591.1,1591.0,7.1422]
[1745139049141,1.25713,1591.1,1591.0,28.32258498]
[1745139049338,5.41899822,1591.2,1591.0,28.32258498]
[1745139049541,1.25703,1591.2,1591.1,6.2864]
[1745139053549,1.25703,1591.2,1591.1,8.8466]
[1745139058850,1.25703,1591.2,1591.1,1.6861]
[1745139060054,2.07273,1591.2,1591.1,1.6861]
[1745139062249,1.25717,1591.0,1590.9,3.2078]
[1745139062662,1.25725,1590.9,1590.8,1.6607]
[1745139062861,1.25725,1590.9,1590.8,11.1549]
[1745139063057,1.25725,1590.9,1590.8,11.9969]
[1745139063248,1.25725,1590.9,1590.8,1.6607]
[1745139063954,3.2078,1591.0,1590.8,26.89948498]
[1745139064264,1.25712,1591.1,1590.9,7.1215]
[1745139064462,1.25712,1591.1,1591.0,4.0163]
[1745139064757,1.25712,1591.1,1591.0,11.8989]
[1745139064960,1.25712,1591.1,1591.0,30.85128498]
[1745139066458,1.25712,1591.1,1591.0,11.8989]
[1745139067064,1.25712,1591.1,1591.0,14.1269]
[1745139068165,1.25712,1591.1,1591.0,13.3184]
[1745139068566,1.25712,1591.1,1591.0,7.032]
[1745139068867,2.61382,1591.1,1591.0,7.032]
[1745139069264,1.25717,1591.0,1590.9,4.347]
[1745139069467,1.25725,1590.9,1590.8,1.6345]
[1745139069667,1.25725,1590.9,1590.8,7.9209]
[1745139075471,1.25725,1590.9,1590.8,1.6345]
[1745139075673,2.06965,1590.9,1590.8,1.6345]
[1745139076875,1.25732,1590.8,1590.7,4.8121]
[1745139077071,2.08022,1590.8,1590.7,4.8121]
[1745139079469,1.25732,1590.8,1590.7,11.0985]
[1745139079671,1.25732,1590.8,1590.7,30.05088498]
[1745139082082,1.25732,1590.8,1590.7,32.27888498]
[1745139084174,1.25732,1590.8,1590.7,27.60999498]
[1745139084373,1.25732,1590.8,1589.7,8.9974]
[1745139084374,1.25772,1590.3,1590.2,1.7626]
[1745139084684,4.46552,1590.3,1590.2,1.7626]
[1745139084876,4.46552,1590.3,1590.2,27.00138498]
[1745139085277,4.46552,1590.3,1590.2,29.22938498]
[1745139088172,1.25788,1590.1,1590.0,2.228]
[1745139088377,1.25788,1590.1,1590.0,3.9074]
[1745139088678,1.25788,1590.1,1590.0,29.14618498]
[1745139089075,1.25788,1590.1,1590.0,30.89498498]
[1745139089275,1.25786,1590.2,1590.0,35.30098498]
[1745139089484,3.2078,1590.3,1590.1,8.0352]
[1745139089684,4.46552,1590.3,1590.2,1.7488]
[1745139089887,4.46552,1590.3,1590.2,8.0352]
[1745139090185,8.62757343,1590.3,1590.2,26.98758498]
[1745139091081,8.62757343,1590.3,1590.2,10.2632]
[1745139091386,8.62757343,1590.3,1590.2,29.21558498]
[1745139093391,4.46552,1590.3,1590.2,29.21558498]
[1745139094686,4.46552,1590.3,1590.2,10.2632]
[1745139095190,4.46552,1590.3,1590.2,8.0352]
[1745139096292,4.46552,1590.3,1590.2,26.98758498]
[1745139097091,4.46552,1590.3,1590.2,29.21558498]
[1745139098692,5.41976343,1590.4,1590.2,38.60058498]
[1745139098997,4.16205343,1590.4,1590.3,11.9405]
[1745139099187,4.16205343,1590.4,1590.3,12.8056]
[1745139099388,4.16205343,1590.4,1590.3,36.75798498]
[1745139100299,5.41969343,1590.4,1590.3,36.75798498]
[1745139101199,1.25764,1590.4,1590.3,36.75798498]
[1745139101497,1.25764,1590.4,1590.3,31.75798498]
[1745139103405,1.25761,1590.5,1590.3,33.01570498]
[1745139103606,1.25761,1590.5,1590.4,7.9247]
[1745139103909,3.2078,1590.7,1590.4,7.9247]
[1745139104202,1.25748,1590.6,1590.5,12.3406]
[1745139104596,1.25748,1590.6,1590.5,31.29298498]
[1745139105296,1.25748,1590.6,1590.5,33.52098498]
[1745139112616,1e-08,1590.7,1590.6,7.54388]
[1745139112811,1e-08,1590.7,1590.6,13.20228]
[1745139113116,1e-08,1590.7,1590.6,18.20228]
[1745139115513,1.25731,1590.9,1590.8,1.25732]
[1745139115719,4.50025,1591.2,1590.8,8.84812]
[1745139115909,4.50025,1591.2,1591.0,3.2078]
[1745139116110,1.25701,1591.2,1591.1,1.6764]
[1745139116305,1.25701,1591.2,1591.1,12.3458]
[1745139119816,1.25701,1591.2,1591.1,15.5536]
[1745139120313,1.25699,1591.3,1591.1,15.5536]
[1745139120618,1.25699,1591.3,1591.2,8.7605]
[1745139121617,2.11473,1591.5,1591.2,10.01749]
[1745139121817,1.25683,1591.5,1591.3,11.1559]
[1745139122018,1.25683,1591.5,1591.4,6.0447]
[1745139122317,1.25683,1591.5,1591.4,12.3311]
[1745139123114,2.61253,1591.5,1591.4,6.2864]
[1745139125716,1.25685,1591.4,1591.3,9.2045]
[1745139125917,3.46285,1591.4,1591.3,15.4909]
[1745139128918,3.46285,1591.4,1591.3,11.1079]
[1745139129118,1.25717,1591.0,1590.9,0.8276]
[1745139129320,1.25717,1591.0,1590.9,10.8235]
[1745139129519,1.25717,1591.0,1590.9,16.1565273]
[1745139129719,1.25717,1591.0,1590.9,11.8265273]
[1745139129917,1.25717,1591.0,1590.9,16.1565273]
[1745139130114,1.25717,1591.0,1590.9,18.3845273]
[1745139131212,1.25715,1591.1,1590.9,18.3845273]
[1745139131418,1.25715,1591.1,1591.0,6.9709273]
[1745139131721,1.25706,1591.2,1591.0,6.9709273]
[1745139131919,1.25706,1591.2,1591.1,6.9709273]
[1745139132117,1.25706,1591.2,1591.1,1.6379]
[1745139132316,1.25706,1591.2,1591.1,6.9709273]
[1745139133325,2.61206,1591.2,1591.1,6.9709273]
[1745139135322,1.25706,1591.2,1591.1,6.9709273]
[1745139135719,1.25706,1591.2,1591.1,1.6379]
[1745139135920,1.25706,1591.2,1591.1,6.9709273]
[1745139142026,2.07696,1591.2,1591.1,6.9709273]
[1745139142828,1.25706,1591.2,1591.1,6.9709273]
[1745139154137,2.05873104,1591.2,1591.1,6.9709273]
[1745139161643,10.39352974,1591.2,1591.1,6.9709273]
[1745139165042,10.39352974,1591.2,1591.1,11.2199273]
[1745139168249,10.39352974,1591.2,1591.1,6.9709273]
[1745139168438,1.25725,1590.9,1590.8,3.2078]
[1745139168948,1.25725,1590.9,1590.8,8.5408273]
[1745139169740,1.25725,1590.9,1590.8,10.2012273]
[1745139169944,1.25725,1590.9,1590.8,6.9934273]
[1745139172850,2.05892104,1590.9,1590.8,6.9934273]
[1745139174345,3.41532104,1590.9,1590.8,6.9934273]
[1745139175747,2.05892104,1590.9,1590.8,6.9934273]
[1745139177653,2.05892104,1590.9,1590.8,5.3330273]
[1745139177859,3.41532104,1590.9,1590.8,5.3330273]
[1745139179249,5.64332104,1590.9,1590.8,5.3330273]
[1745139179451,1.25732,1590.8,1590.7,1.6633]
[1745139179652,2.09432,1590.8,1590.7,6.9963273]
[1745139179852,2.91812,1590.8,1590.7,6.9963273]
[1745139181964,7.48242,1590.8,1590.7,1.6633]
[1745139185158,1.25732,1590.8,1590.7,1.6633]
[1745139185562,10.41288807,1590.8,1590.7,1.6633]
[1745139186666,10.41288807,1590.8,1590.7,6.9963273]
[1745139189972,8.31678171,1590.8,1590.7,6.9963273]
[1745139191873,11.52458171,1590.8,1590.7,6.9963273]
[1745139195070,3.07146171,1590.8,1590.7,16.4615273]
[1745139195266,16.14255626,1590.9,1590.8,1.25732]
[1745139195575,16.14255626,1590.9,1590.8,11.6663473]
[1745139195769,16.14255626,1590.9,1590.8,16.6663473]
[1745139197783,1.25717,1591.0,1590.8,16.6663473]
[1745139198079,1.25717,1591.0,1590.9,8.5408273]
[1745139198277,1.25717,1591.0,1590.9,11.1600273]
[1745139198980,1.25717,1591.0,1590.9,7.9522273]
[1745139199173,1.25717,1591.0,1590.9,13.3880273]
[1745139199881,1.25714,1591.1,1590.9,13.3880273]
[1745139200080,1.25714,1591.1,1591.0,7.0179273]
[1745139201076,1.25714,1591.1,1591.0,9.2459273]
[1745139201578,1.25705,1591.2,1591.0,15.5030473]
[1745139201778,1.25705,1591.2,1591.1,11.9945273]
[1745139203280,1.25705,1591.2,1591.1,13.2516173]
[1745139203468,1.25705,1591.2,1591.1,11.9945273]
[1745139203673,1.25692,1591.4,1591.2,1.25698]
[1745139203980,1.25692,1591.4,1591.3,1.6297]
[1745139204181,1.25692,1591.4,1591.3,6.9627273]
[1745139205479,1.25692,1591.4,1591.3,11.1507273]
[1745139208284,1.25681,1591.5,1591.3,12.4076473]
[1745139208487,1.25681,1591.5,1591.4,7.7945273]
[1745139208885,9.61065703,1591.6,1591.4,7.7945273]
[1745139209084,9.61065703,1591.6,1591.5,6.1986273]
[1745139209285,9.61065703,1591.6,1591.5,7.7954273]
[1745139210386,1.25676,1591.6,1591.5,7.7954273]
[1745139211389,1.25701,1591.2,1591.1,3.2078]
[1745139211893,1.25701,1591.2,1591.1,7.12526559]
[1745139216385,1.25701,1591.2,1591.1,5.46936559]
[1745139216584,2.06281,1591.2,1591.1,5.46936559]
[1745139219891,2.06281,1591.2,1591.1,2.26156559]
[1745139220286,5.27061,1591.2,1591.1,2.26156559]
[1745139221791,10.27061,1591.2,1591.1,2.26156559]
[1745139221996,1.25709,1591.1,1591.0,4.188]
[1745139222197,3.66729,1591.1,1591.0,6.44956559]
[1745139233907,2.85549,1591.1,1591.0,6.44956559]
[1745139234101,1.25709,1591.1,1591.0,6.44956559]
[1745139238312,2.90609,1591.1,1591.0,6.44956559]
[1745139242500,2.90609,1591.1,1591.0,2.26156559]
[1745139244103,3.79039,1591.1,1591.0,2.26156559]
[1745139245915,12.14428703,1591.1,1591.0,2.26156559]
[1745139248312,11.25998703,1591.1,1591.0,2.26156559]
[1745139248715,9.61098703,1591.1,1591.0,2.26156559]
[1745139250615,11.21018703,1591.1,1591.0,2.26156559]
[1745139252713,2.85629,1591.1,1591.0,2.26156559]
[1745139252913,3.71499,1591.1,1591.0,2.26156559]
[1745139255522,12.06888703,1591.1,1591.0,2.26156559]
[1745139255821,1.25717,1591.0,1590.9,1.7718]
[1745139256423,1.25717,1591.0,1590.9,4.03336559]
[1745139256923,1.25717,1591.0,1590.9,2.26156559]
[1745139257323,2.97347,1591.0,1590.9,2.26156559]
[1745139257516,2.97347,1591.0,1590.9,3.90176559]
[1745139258124,1.25717,1591.0,1590.9,3.90176559]
[1745139260426,9.61106703,1591.0,1590.9,3.90176559]
[1745139264428,7.5383864,1591.0,1590.9,3.90176559]
[1745139265332,7.5383864,1591.0,1590.9,8.04076559]
[1745139268438,7.5383864,1591.0,1590.9,16.24856559]
[1745139271025,7.5383864,1591.0,1590.9,11.24856559]
[1745139271232,7.5383864,1591.0,1590.9,16.24856559]
[1745139271532,1.25717,1591.0,1590.9,16.24856559]
[1745139271938,1.25717,1591.0,1590.9,11.24856559]
[1745139272740,1.25717,1591.0,1590.9,12.50581559]
[1745139273141,1.25717,1591.0,1590.9,13.47656559]
[1745139276243,1.25717,1591.0,1590.9,2.75169559]
[1745139276544,4.62587,1591.0,1590.9,2.75169559]
[1745139277246,4.62587,1591.0,1590.9,0.52369559]
[1745139279445,12.97976703,1591.0,1590.9,0.52369559]
[1745139285861,1.25725,1590.9,1590.8,5.9014]
[1745139286050,2.89605,1590.9,1590.8,5.9014]
[1745139286250,2.89605,1590.9,1590.8,6.42509559]
[1745139286560,2.89605,1590.9,1590.8,0.52369559]
[1745139287255,1.25732,1590.8,1590.7,4.9979]
[1745139287455,3.73302,1590.8,1590.7,4.9979]
[1745139287771,3.73302,1590.8,1590.7,4.139]
[1745139290663,14.18153505,1590.8,1590.7,4.139]
[1745139291765,1.2574,1590.7,1590.6,1.752]
[1745139291965,3.7861,1590.7,1590.6,5.891]
[1745139292652,3.7861,1590.7,1590.6,4.139]
[1745139292851,2.9819,1590.7,1590.6,4.139]
[1745139293166,1.2574,1590.7,1590.6,5.7919]
[1745139294061,2.9741,1590.7,1590.6,5.7919]
[1745139295265,7.15350602,1590.7,1590.6,5.7919]
[1745139297264,7.15350602,1590.7,1590.6,1.6529]
[1745139297464,1.25748,1590.6,1590.5,2.228]
[1745139298166,1.25748,1590.6,1590.5,2.6077]
[1745139299653,3.73228,1590.6,1590.5,2.6077]
[1745139299965,6.94008,1590.6,1590.5,2.6077]
[1745139300358,4.46528,1590.6,1590.5,2.6077]
[1745139301166,4.46528,1590.6,1590.5,4.8357]
[1745139302668,1.25748,1590.6,1590.5,4.8357]
[1745139302860,5.43688602,1590.6,1590.5,4.8357]
[1745139306968,1.25748,1590.6,1590.5,4.8357]
[1745139309668,1.25748,1590.6,1590.5,8.0435]
[1745139312165,5.43681602,1590.7,1590.5,14.30102]
[1745139312364,4.17940602,1590.7,1590.6,7.08998]
[1745139312764,4.17940602,1590.7,1590.6,12.08998]
[1745139314378,1.25729,1590.9,1590.7,1.2574]
[1745139314675,1.25729,1590.9,1590.8,4.0449]
[1745139315064,1.25729,1590.9,1590.8,5.6631]
[1745139319670,1.25729,1590.9,1590.8,2.4553]
[1745139319871,1.25729,1590.9,1590.8,5.6631]
[1745139320374,1.25729,1590.9,1590.3,8.39740057]
[1745139320375,6.35142,1590.7,1590.3,8.39740057]
[1745139320672,1.25772,1590.3,1590.2,9.21759847]
[1745139320866,1.25772,1590.3,1590.2,6.72267847]
[1745139321065,11.01352,1590.3,1590.2,5.16792847]
[1745139321275,11.01352,1590.3,1590.2,3.26418848]
[1745139321565,11.56792579,1590.3,1590.2,2.65798849]
[1745139323178,9.33992579,1590.3,1590.2,2.65798849]
[1745139323479,8.78552,1590.3,1590.2,2.65798849]
[1745139324372,9.34275099,1590.3,1590.2,2.65798849]
[1745139324575,8.78552,1590.3,1590.2,2.65798849]
[1745139325476,3.78552,1590.3,1590.2,2.65798849]
[1745139325981,4.33996993,1590.3,1590.2,2.65798849]
[1745139326776,1.25788,1590.1,1590.0,1.7509]
[1745139326973,4.46568,1590.1,1590.0,1.7509]
[1745139327168,4.46568,1590.1,1589.6,4.0473]
[1745139327169,3.2078,1590.1,1589.6,4.0473]
[1745139327373,3.2078,1589.9,1589.7,4.14]
[1745139327579,4.46584,1589.9,1589.8,1.6117]
[1745139329386,3.2078,1589.9,1589.8,1.6117]
[1745139330587,4.46584,1589.9,1589.8,1.6117]
[1745139331174,3.2078,1589.9,1589.8,2.86982]
[1745139331775,4.46584,1589.9,1589.8,2.86982]
[1745139332099,4.46584,1589.9,1589.8,1.6117]
[1745139334190,4.46584,1589.9,1589.8,2.4489]
[1745139334792,3.2078,1589.9,1589.8,3.70702]
[1745139335488,4.46584,1589.9,1589.8,3.70702]
[1745139335891,3.2078,1589.9,1589.8,3.70702]
[1745139336194,3.2078,1589.9,1589.8,2.4489]
[1745139336195,4.46584,1589.9,1589.8,2.4489]
[1745139336792,1.25812,1589.8,1589.7,6.368]
[1745139336979,1.25812,1589.8,1589.7,8.1405]
[1745139338085,1.25812,1589.8,1589.7,6.368]
[1745139338292,3.87672,1589.8,1589.7,6.368]
[1745139340196,3.87672,1589.8,1589.7,4.14]
[1745139340695,3.87672,1589.8,1589.0,5.3997]
[1745139340696,1.25857,1589.3,1589.0,5.3997]
[1745139340894,4.46634,1589.3,1589.0,1.7365]
[1745139341086,3.2078,1589.3,1589.1,5.8775]
[1745139341291,3.2078,1589.3,1589.1,4.141]
[1745139341593,1.25859,1589.2,1589.1,4.141]
[1745139341796,3.01039,1589.2,1589.1,4.141]
[1745139342197,1.7518,1589.2,1589.1,4.141]
[1745139342491,4.46634,1589.3,1589.1,4.141]
[1745139342698,6.21814,1589.3,1589.2,1.7333]
[1745139343098,4.9596,1589.3,1589.2,3.9613]
[1745139343900,3.2078,1589.3,1589.2,3.9613]
[1745139344092,3.2078,1589.5,1589.4,1.25837]
[1745139344400,3.2078,1589.5,1589.4,5.39937]
[1745139344699,4.46601,1589.7,1589.5,1.25835]
[1745139344900,4.46601,1589.7,1589.6,2.4633]
[1745139345087,3.2078,1589.7,1589.6,3.72157]
[1745139345292,6.11438,1590.0,1589.6,7.4633]
[1745139345491,6.11441,1590.0,1589.8,1.25811]
[1745139345700,7.79541,1590.0,1589.7,7.08403]
[1745139345900,1.25804,1589.9,1589.8,1.5969]
[1745139346294,7.79538,1590.0,1589.8,2.85499]
[1745139346496,1.25804,1589.9,1589.8,1.5969]
[1745139346797,1.25804,1589.9,1589.7,7.71516]
[1745139346798,4.16022803,1589.8,1589.7,6.457]
[1745139347502,8.62614803,1589.8,1589.7,6.457]
[1745139347696,10.30714803,1589.8,1589.7,6.457]
[1745139348402,10.30714803,1589.8,1589.7,2.228]
[1745139348596,7.36802803,1589.8,1589.7,6.457]
[1745139348791,7.36802803,1589.8,1589.7,7.71519]
[1745139349300,8.62614803,1589.8,1589.7,6.457]
[1745139349505,13.62614803,1589.8,1589.7,2.228]
[1745139349801,15.35834803,1589.8,1589.7,2.228]
[1745139350301,1.25819,1589.7,1589.5,4.229]
[1745139350499,6.19827,1589.6,1589.5,4.229]
[1745139351093,6.19827,1589.6,1589.5,6.457]
[1745139351590,6.19827,1589.6,1589.5,2.228]
[1745139351795,11.19827,1589.6,1589.5,2.228]
[1745139352101,9.94,1589.6,1589.3,4.229]
[1745139352296,3.2078,1589.4,1589.3,4.229]
[1745139352697,4.8085,1589.4,1589.3,4.229]
[1745139352997,4.8085,1589.4,1589.1,0.8614]
[1745139353200,1.25867,1589.1,1589.0,4.229]
[1745139353713,3.67707,1589.1,1589.0,4.229]
[1745139355090,2.4184,1589.1,1589.0,4.229]
[1745139355401,1.25878,1589.0,1588.7,97.98453]
[1745139355603,3.2078,1588.9,1588.8,4.23]
[1745139355903,4.46663,1588.9,1588.8,4.23]
[1745139356295,4.46663,1588.9,1588.7,100.21254]
[1745139356296,1.25891,1588.8,1588.7,2.228]
[1745139356494,1.25915,1588.5,1588.4,15.07085004]
[1745139356695,3.2078,1588.5,1588.1,1.25944]
[1745139356895,3.2078,1588.3,1588.2,5.48938]
[1745139357096,3.2078,1588.5,1588.3,1.2593]
[1745139357397,4.46696,1588.5,1588.3,0.8466]
[1745139357596,3.2078,1588.5,1588.3,0.8466]
[1745139357798,3.2078,1588.5,1588.3,2.10588]
[1745139358000,3.2078,1588.5,1588.4,1.25922]
[1745139358203,4.46696,1588.5,1588.4,2.228]
[1745139358607,4.46696,1588.5,1588.4,6.458]
[1745139358904,4.46696,1588.5,1588.4,2.228]
[1745139359602,5.33506,1588.5,1588.4,2.228]
[1745139360303,1.25938,1588.2,1588.1,4.23]
[1745139360506,4.46718,1588.2,1587.9,3.2078]
[1745139360691,1.6093,1588.1,1588.0,4.23]
[1745139361202,2.4774,1588.1,1588.0,2.228]
[1745139361404,3.73686,1588.1,1588.0,2.228]
[1745139361799,7.4774,1588.1,1587.5,15.07085004]
[1745139362116,3.2078,1587.6,1586.9,3.2078]
[1745139362403,4.46746,1587.9,1587.3,3.2078]
[1745139362595,3.0961,1588.1,1587.4,5.0949]
[1745139362596,1.25981,1587.7,1587.4,5.0949]
[1745139362802,4.8171,1587.8,1587.4,5.0949]
[1745139363002,4.8171,1587.8,1587.6,1.25985]
[1745139363298,3.2078,1587.8,1587.7,5.49078]
[1745139363702,3.2078,1587.8,1587.7,10.49078]
[1745139363909,3.2078,1588.1,1588.0,1.25954]
[1745139364099,3.2078,1588.8,1588.1,3.14861]
[1745139364406,3.2078,1588.8,1588.5,1.25912]
[1745139364407,4.46677,1588.8,1588.5,1.25912]
[1745139364600,1.7504,1588.7,1588.2,8.5647]
[1745139364806,3.2078,1588.4,1588.2,0.8639]
[1745139365003,1.7504,1588.3,1588.2,0.8639]
[1745139365804,3.0097,1588.3,1588.2,2.59]
[1745139366005,3.0097,1588.3,1588.2,1.7261]
[1745139366203,1.7504,1588.3,1588.0,4.493]
[1745139366409,4.9456,1588.2,1588.0,6.1922]
[1745139366606,1.7378,1588.1,1588.0,6.1922]
[1745139366810,2.99726,1588.1,1588.0,6.1922]
[1745139367208,1.7378,1588.1,1588.0,8.4202]
[1745139367908,3.2078,1588.7,1588.0,16.628]
[1745139368116,1.25912,1588.6,1588.4,3.2078]
[1745139368410,2.99692,1588.6,1588.4,7.7018]
[1745139368607,1.25915,1588.5,1588.4,7.7018]
[1745139368808,1.7378,1588.6,1588.4,9.401]
[1745139369006,1.7378,1588.6,1588.4,10.66019]
[1745139369313,1.7378,1588.6,1588.5,1.7086]
[1745139370109,1.7378,1588.6,1588.5,3.9366]
[1745139370613,2.99687,1588.6,1588.5,2.228]
[1745139370812,3.82017,1588.6,1588.5,2.228]
[1745139371209,1.25915,1588.5,1588.4,4.494]
[1745139371512,6.12705,1588.5,1588.4,4.494]
[1745139371909,1.6601,1588.5,1588.4,4.494]
[1745139372112,1.6601,1588.5,1588.4,6.722]
[1745139372309,1.6601,1588.5,1588.4,8.3419]
[1745139372498,1.25915,1588.5,1588.4,8.3419]
[1745139372704,3.03195,1588.5,1588.4,8.3419]
[1745139373311,3.03195,1588.5,1588.4,2.228]
[1745139374214,1.2593,1588.4,1588.2,6.1139]
[1745139374417,1.2593,1588.3,1588.2,6.1139]
[1745139375216,1.2593,1588.3,1588.2,2.228]
[1745139375414,6.2593,1588.3,1588.2,2.228]
[1745139375606,2.0677,1588.3,1588.2,2.228]
[1745139376218,1.25938,1588.2,1588.1,3.2078]
[1745139376414,3.00718,1588.2,1588.1,3.2078]
[1745139377410,3.87718,1588.2,1588.1,3.2078]
[1745139378814,1.25946,1588.1,1588.0,1.7208]
[1745139379018,3.00996,1588.1,1588.0,1.7208]
[1745139379213,1.25946,1588.1,1588.0,1.7208]
[1745139380114,3.00992,1588.2,1588.0,7.1566]
[1745139380309,1.25942,1588.2,1588.0,7.1566]
[1745139380510,1.25942,1588.2,1588.1,1.7289]
[1745139380912,1.25938,1588.2,1588.1,1.7289]
[1745139381118,6.35589,1588.4,1587.9,5.3156]
[1745139381119,2.6082,1588.3,1587.9,5.3156]
[1745139381312,1.25946,1588.1,1588.0,1.6871]
[1745139381914,3.03444,1588.2,1588.0,1.6871]
[1745139382114,1.25946,1588.1,1588.0,3.9151]
[1745139382822,3.2078,1588.6,1588.0,12.1229]
[1745139383014,1.25933,1588.3,1588.1,1.6871]
[1745139383209,1.25933,1588.3,1588.2,5.3764]
[1745139383713,1.25938,1588.2,1588.1,6.1811]
[1745139383913,3.03438,1588.2,1588.1,6.1811]
[1745139384114,3.97998,1588.5,1588.1,6.1811]
[1745139384411,1.6414,1588.4,1588.2,1.7061]
[1745139384619,1.25938,1588.3,1588.2,1.7061]
[1745139385211,1.25938,1588.3,1588.2,3.9341]
[1745139385723,2.90065,1588.4,1588.2,3.9341]
[1745139385924,1.25925,1588.4,1588.3,2.5885]
[1745139386114,1.25919,1588.5,1588.3,2.5885]
[1745139386315,1.25919,1588.5,1588.4,1.7061]
[1745139387119,1.25919,1588.5,1588.4,3.9341]
[1745139387626,1.25919,1588.5,1588.4,2.228]
[1745139387819,2.06969,1588.5,1588.4,2.228]
[1745139388020,4.62349,1588.5,1588.4,2.228]
[1745139388321,1.25922,1588.4,1588.3,7.0878]
[1745139388521,2.99002,1588.4,1588.3,2.5938]
[1745139389821,6.19782,1588.4,1588.3,1.7114]
[1745139390129,1.25954,1588.0,1587.9,7.7018]
[1745139390518,1.25954,1588.0,1587.9,9.3849]
[1745139390915,2.541,1588.2,1587.9,9.3849]
[1745139390916,1.25952,1588.1,1587.9,9.3849]
[1745139391123,1.25952,1588.1,1588.0,1.6831]
[1745139391419,3.14812,1588.4,1588.0,1.6831]
[1745139391612,1.25936,1588.3,1588.1,0.8175]
[1745139391817,1.2593,1588.3,1588.2,1.6831]
[1745139392220,1.2593,1588.3,1588.2,2.228]
[1745139392420,1.2593,1588.3,1588.2,3.9111]
[1745139393615,0.823,1588.5,1588.2,4.7504]
[1745139393818,4.8515,1588.6,1588.3,4.494]
[1745139394024,1.25922,1588.5,1588.4,0.7998]
[1745139394719,1.25922,1588.4,1588.3,4.494]
[1745139395721,1.2593,1588.3,1588.2,5.4358]
[1745139396123,1.2593,1588.3,1588.2,2.228]
[1745139396516,2.9863,1588.3,1588.2,2.228]
[1745139397124,3.2078,1588.4,1588.1,0.7998]
[1745139397328,1.25938,1588.2,1588.1,4.0076]
[1745139399428,2.98048,1588.2,1588.1,0.7998]
[1745139399826,1.25938,1588.2,1588.1,0.7998]
[1745139401027,2.98048,1588.2,1588.1,0.7998]
[1745139403032,1.25938,1588.2,1588.1,0.7998]
[1745139403431,1.25938,1588.2,1588.1,1.637]
[1745139405327,2.87678,1588.2,1588.1,1.637]
[1745139405835,7.03700803,1588.2,1588.1,1.637]
[1745139408040,5.41960803,1588.2,1588.1,1.637]
[1745139408636,4.16022803,1588.2,1588.1,2.89646]
[1745139408837,6.24034205,1588.3,1588.1,6.637]
[1745139409033,7.49964205,1588.3,1588.2,7.7478]
[1745139409339,7.49964205,1588.3,1588.2,9.9758]
[1745139409731,7.49964205,1588.3,1588.2,5.4358]
[1745139409928,7.49964205,1588.3,1588.2,9.9758]
[1745139410340,7.49964205,1588.3,1588.2,5.4358]
[1745139411232,6.24034205,1588.3,1588.2,11.69518]
[1745139411634,5.12723008,1588.3,1588.2,11.69518]
[1745139413741,5.12723008,1588.3,1588.2,13.39918]
[1745139414441,10.89389703,1588.9,1588.2,12.1398]
[1745139414647,1.25907,1588.6,1588.5,3.2078]
[1745139414841,11.50099703,1588.9,1588.5,11.0646]
[1745139415045,8.35389703,1588.9,1588.7,3.2078]
[1745139415233,11.27602703,1588.9,1588.8,1.6417]
[1745139415429,11.27602703,1588.9,1588.7,5.4358]
[1745139415430,1.25891,1588.8,1588.7,5.4358]
[1745139416144,1.25891,1588.8,1588.7,3.2078]
[1745139417240,2.92221,1588.8,1588.7,3.2078]
[1745139417442,3.76811,1588.8,1588.7,3.2078]
[1745139417841,2.10481,1588.8,1588.7,3.2078]
[1745139418043,1.25891,1588.8,1588.7,3.2078]
[1745139418343,1.25891,1588.8,1588.7,5.4358]
[1745139420132,1.25891,1588.8,1588.7,7.0379]
[1745139420745,16.26668688,1589.0,1588.7,7.0379]
[1745139420947,1.25883,1588.9,1588.8,6.1977]
[1745139421138,2.98413,1588.9,1588.8,6.1977]
[1745139421439,7.98413,1588.9,1588.8,1.6587]
[1745139421639,7.98413,1588.9,1588.7,2.228]
[1745139421640,1.25891,1588.8,1588.7,2.228]
[1745139421844,4.68131,1588.8,1588.7,2.228]
[1745139422344,1.25899,1588.7,1588.6,7.0238]
[1745139422538,2.98429,1588.7,1588.6,7.0238]
[1745139423950,2.98429,1588.7,1588.6,1.6587]
[1745139424242,1.25922,1588.4,1588.3,3.2078]
[1745139424447,1.25922,1588.4,1588.3,7.7468]
[1745139424650,2.89612,1588.4,1588.3,7.7468]
[1745139425248,1.25922,1588.4,1588.3,7.7468]
[1745139425647,1.25922,1588.4,1588.3,10.2757]
[1745139425842,1.2592,1588.5,1588.3,10.2757]